[Event "EYCC 2017"]
[Site "Mamaia"]
[Date "2017.09.05"]
[Round "1"]
[White "Eizaguerri Floris, Maria"]
[Black "Moiseeva, Olesya"]
[Result "1-0"]
[ECO "C42"]
[WhiteElo "2098"]
[BlackElo "1757"]
[Annotator "NA RC"]
[PlyCount "49"]
[EventDate "2017.??.??"]
[EventType "swiss"]
[EventCountry "ROU"]
[SourceTitle "playchess.com"]
[Source "ChessBase"]
[SourceQuality "1"]
[TimeControl "40/5400+30:1800+30"]

1. e4 {[%emt 0:00:00]} e5 {[%emt 0:00:00]} 2. Nf3 {[%emt 0:00:03]} Nf6 {[%emt 0:00:00]} 3. Nxe5 {[%emt 0:01:03]} d6 {[%emt 0:00:09]} 4. Nf3 {[%emt 0:00:10]} Nxe4 {[%emt 0:00:07]} 5. Bd3 {[%emt 0:00:40]} Nc5 {[%emt 0:02:18]} 6. Be2 {[%emt 0:05:43]} d5 {[%emt 0:06:27]} 7. d4 {[%emt 0:08:27]} Ne4 {[%emt 0:00:43]} 8. O-O {[%emt 0:03:24]} Bd6 {[%emt 0:00:45]} 9. Bd3 {[%emt 0:01:04]} Be6 {[%emt 0:02:11]} 10. Re1 {[%emt 0:15:18]} f5 {[%emt 0:03:53]} 11. Ng5 {[%emt 0:06:25]} Nxg5 {[%emt 0:04:01]} 12. Bxg5 {[%emt 0:00:17]} Qxg5 {[%emt 0:00:30]} 13. Rxe6+ {[%emt 0:00:12]} Kf7 {[%emt 0:02:01]} 14. Rxd6 {[%emt 0:24:08]} cxd6 {[%emt 0:00:48]} 15. Nc3 {[%emt 0:00:35]} Nc6 {[%emt 0:10:41]} 16. Nxd5 {[%emt 0:02:14]} Rad8 {[%emt 0:04:24]} 17. c3 {[%emt 0:03:23]} Ne7 {[%emt 0:03:35]} 18. Qb3 {[%emt 0:03:31]} Rhe8 {[%emt 0:07:33]} 19. Nc7+ {[%emt 0:04:36]} Kg6 {[%emt 0:01:28]} 20. Nxe8 {[%emt 0:02:26]} Rxe8 {[%emt 0:00:11]} 21. Qe6+ {[%emt 0:04:18]} Qf6 {[%emt 0:00:35]} 22. Bxf5+ {[%emt 0:01:41]} Nxf5 {[%emt 0:01:41]} 23. Qxe8+ {[%emt 0:00:09]} Qf7 {[%emt 0:00:25]} 24. Qxf7+ {[%emt 0:00:37]} Kxf7 {[%emt 0:00:06]} 25. Re1 {[%emt 0:01:20]} 1-0

[Event "EYCC 2017"]
[Site "Mamaia"]
[Date "2017.09.05"]
[Round "1"]
[White "Allahverdiyeva, Ayan"]
[Black "Zavivaeva, Emilia"]
[Result "0-1"]
[ECO "C00"]
[WhiteElo "2082"]
[BlackElo "1582"]
[Annotator "NA RC"]
[PlyCount "102"]
[EventDate "2017.??.??"]
[EventType "swiss"]
[EventCountry "ROU"]
[SourceTitle "playchess.com"]
[Source "ChessBase"]
[SourceQuality "1"]
[TimeControl "40/5400+30:1800+30"]

1. e4 {[%emt 0:00:00]} e6 {[%emt 0:00:20]} 2. d3 {[%emt 0:00:00]} d5 {[%emt 0:00:10]} 3. Nd2 {[%emt 0:00:03]} c5 {[%emt 0:00:24]} 4. Ngf3 {[%emt 0:00:09]} Nc6 {[%emt 0:00:13]} 5. g3 {[%emt 0:00:08]} Bd6 {[%emt 0:00:12]} 6. Bg2 {[%emt 0:00:21]} Nge7 {[%emt 0:00:38]} 7. h4 {[%emt 0:00:50]} Bd7 {[%emt 0:00:21]} 8. O-O {[%emt 0:02:34]} O-O {[%emt 0:00:14]} 9. Re1 {[%emt 0:01:14]} Qc7 {[%emt 0:00:45]} 10. Qe2 {[%emt 0:07:19]} f6 {[%emt 0:00:59]} 11. Nf1 {[%emt 0:04:16]} b5 {[%emt 0:02:09]} 12. c3 {[%emt 0:01:14]} c4 {[%emt 0:02:54]} 13. Rd1 {[%emt 0:17:54]} Rad8 {[%emt 0:09:36]} 14. exd5 {[%emt 0:05:11]} exd5 {[%emt 0:00:50]} 15. Ne3 {[%emt 0:00:29]} Rfe8 {[%emt 0:08:08]} 16. Qf1 {[%emt 0:01:19]} Be6 {[%emt 0:01:18]} 17. b3 {[%emt 0:04:14]} cxb3 {[%emt 0:12:27]} 18. axb3 {[%emt 0:00:07]} d4 {[%emt 0:02:12]} 19. cxd4 {[%emt 0:07:06]} Bxb3 {[%emt 0:00:37]} 20. Bb2 {[%emt 0:00:20]} Bxd1 {[%emt 0:00:47]} 21. Qxd1 {[%emt 0:00:05]} Nb4 {[%emt 0:06:19]} 22. Qb3+ {[%emt 0:02:50]} Kh8 {[%emt 0:00:35]} 23. h5 {[%emt 0:11:30]} Ng8 {[%emt 0:05:24]} 24. d5 {[%emt 0:11:10]} a5 {[%emt 0:02:09]} 25. Rc1 {[%emt 0:04:29]} Qf7 {[%emt 0:01:21]} 26. Nd4 {[%emt 0:02:51]} a4 {[%emt 0:09:14]} 27. Qc3 {[%emt 0:02:35]} Na2 {[%emt 0:00:46]} 28. Qc6 {[%emt 0:01:03]} Nxc1 {[%emt 0:00:19]} 29. Ne6 {[%emt 0:00:16]} Ne2+ {[%emt 0:01:29]} 30. Kf1 {[%emt 0:00:04]} Nxg3+ {[%emt 0:02:41]} 31. fxg3 {[%emt 0:00:05]} Rxe6 {[%emt 0:01:41]} 32. dxe6 {[%emt 0:01:43]} Qxe6 {[%emt 0:00:03]} 33. Bd4 {[%emt 0:00:09]} Rc8 {[%emt 0:04:25]} 34. Qd5 {[%emt 0:02:15]} Qd7 {[%emt 0:02:02]} 35. Nf5 {[%emt 0:01:05]} Ne7 {[%emt 0:02:19]} 36. Nxe7 {[%emt 0:01:18]} Qxe7 {[%emt 0:00:21]} 37. Be4 {[%emt 0:00:32]} Be5 {[%emt 0:00:44]} 38. h6 {[%emt 0:02:30]} Bxd4 {[%emt 0:02:13]} 39. Qxd4 {[%emt 0:00:40]} a3 {[%emt 0:01:00]} 40. Qf2 {[%emt 0:00:00]} Rc1+ {[%emt 0:00:43]} 41. Kg2 {[%emt 0:00:37]} Qc5 {[%emt 0:00:15]} 42. hxg7+ {[%emt 0:02:29]} Kxg7 {[%emt 0:00:07]} 43. d4 {[%emt 0:00:03]} Qc4 {[%emt 0:01:35]} 44. Qf5 {[%emt 0:04:07]} Qe2+ {[%emt 0:00:52]} 45. Kh3 {[%emt 0:00:09]} Qf1+ {[%emt 0:00:07]} 46. Qxf1 {[%emt 0:00:27]} Rxf1 {[%emt 0:00:03]} 47. Bd5 {[%emt 0:00:10]} Rh1+ {[%emt 0:00:20]} 48. Kg4 {[%emt 0:00:10]} f5+ {[%emt 0:00:12]} 49. Kxf5 {[%emt 0:00:12]} Rh5+ {[%emt 0:00:11]} 50. Kg4 {[%emt 0:00:11]} Rxd5 {[%emt 0:00:07]} 51. Kh4 {[%emt 0:00:07]} a2 {[%emt 0:00:19]} 0-1

[Event "EYCC 2017"]
[Site "Mamaia"]
[Date "2017.09.05"]
[Round "1"]
[White "Muetsch, Annmarie"]
[Black "Plaza Reino, Mercedes"]
[Result "1-0"]
[ECO "B42"]
[WhiteElo "2049"]
[BlackElo "1824"]
[Annotator "NA RC"]
[PlyCount "49"]
[EventDate "2017.??.??"]
[EventType "swiss"]
[EventCountry "ROU"]
[SourceTitle "playchess.com"]
[Source "ChessBase"]
[SourceQuality "1"]
[TimeControl "40/5400+30:1800+30"]

1. e4 {[%emt 0:00:00]} c5 {[%emt 0:00:07]} 2. Nf3 {[%emt 0:00:00]} e6 {[%emt 0:00:06]} 3. d4 {[%emt 0:00:00]} cxd4 {[%emt 0:00:05]} 4. Nxd4 {[%emt 0:00:00]} a6 {[%emt 0:00:05]} 5. Bd3 {[%emt 0:00:03]} Nf6 {[%emt 0:00:50]} 6. O-O {[%emt 0:01:43]} Qc7 {[%emt 0:00:23]} 7. Qe2 {[%emt 0:01:45]} d6 {[%emt 0:02:41]} 8. c4 {[%emt 0:00:27]} Be7 {[%emt 0:01:22]} 9. Nc3 {[%emt 0:01:38]} O-O {[%emt 0:01:22]} 10. Be3 {[%emt 0:06:15]} Nbd7 {[%emt 0:03:02]} 11. f4 {[%emt 0:03:15]} b6 {[%emt 0:04:07]} 12. Rac1 {[%emt 0:03:25]} Bb7 {[%emt 0:03:44]} 13. Bf2 {[%emt 0:03:00]} Rac8 {[%emt 0:04:32]} 14. Kh1 {[%emt 0:05:11]} Rfd8 {[%emt 0:16:04]} 15. b3 {[%emt 0:11:27]} Nc5 {[%emt 0:07:54]} 16. Bb1 {[%emt 0:03:17]} Qb8 {[%emt 0:16:26]} 17. Bh4 {[%emt 0:16:33]} Ncd7 {[%emt 0:08:36]} 18. Nf3 {[%emt 0:06:20]} Re8 {[%emt 0:10:21]} 19. Qe1 {[%emt 0:16:57]} Bf8 {[%emt 0:13:53]} 20. Bxf6 {[%emt 0:10:12]} Nxf6 {[%emt 0:00:16]} 21. e5 {[%emt 0:00:15]} Nd7 {[%emt 0:01:42]} 22. Bxh7+ {[%emt 0:04:25]} Kh8 {[%emt 0:01:33]} 23. Qh4 {[%emt 0:01:22]} Be7 {[%emt 0:00:55]} 24. Qh5 {[%emt 0:00:59]} Nf8 {[%emt 0:00:51]} 25. Bg6+ {[%emt 0:00:05]} 1-0

[Event "EYCC 2017"]
[Site "Mamaia"]
[Date "2017.09.05"]
[Round "1"]
[White "Krasteva, Beloslava"]
[Black "Maciulaityte, Barbora"]
[Result "1-0"]
[ECO "D10"]
[WhiteElo "2048"]
[BlackElo "1596"]
[Annotator "NA RC"]
[PlyCount "59"]
[EventDate "2017.??.??"]
[EventType "swiss"]
[EventCountry "ROU"]
[SourceTitle "playchess.com"]
[Source "ChessBase"]
[SourceQuality "1"]
[TimeControl "40/5400+30:1800+30"]

1. d4 {[%emt 0:00:00]} d5 {[%emt 0:00:10]} 2. c4 {[%emt 0:00:00]} c6 {[%emt 0:00:10]} 3. cxd5 {[%emt 0:00:27]} cxd5 {[%emt 0:00:10]} 4. Nf3 {[%emt 0:00:27]} Nf6 {[%emt 0:00:41]} 5. Nc3 {[%emt 0:00:18]} g6 {[%emt 0:00:48]} 6. Bf4 {[%emt 0:05:16]} Bg7 {[%emt 0:01:41]} 7. e3 {[%emt 0:01:31]} O-O {[%emt 0:00:33]} 8. Qb3 {[%emt 0:01:51]} Nc6 {[%emt 0:02:30]} 9. Bd3 {[%emt 0:02:25]} e6 {[%emt 0:06:13]} 10. h3 {[%emt 0:07:19]} a6 {[%emt 0:01:54]} 11. Rc1 {[%emt 0:04:35]} b5 {[%emt 0:12:14]} 12. O-O {[%emt 0:14:40]} Bd7 {[%emt 0:07:13]} 13. a4 {[%emt 0:14:56]} b4 {[%emt 0:11:08]} 14. Na2 {[%emt 0:03:32]} a5 {[%emt 0:00:50]} 15. Bb5 {[%emt 0:01:10]} Qb6 {[%emt 0:01:43]} 16. Rc2 {[%emt 0:03:35]} Rac8 {[%emt 0:06:13]} 17. Rfc1 {[%emt 0:04:06]} Qb7 {[%emt 0:06:03]} 18. Qd3 {[%emt 0:06:33]} Nb8 {[%emt 0:02:58]} 19. Bxd7 {[%emt 0:02:46]} Nbxd7 {[%emt 0:01:11]} 20. b3 {[%emt 0:04:00]} Ne4 {[%emt 0:07:01]} 21. Rc7 {[%emt 0:03:46]} Ndc5 {[%emt 0:02:07]} 22. R7xc5 {[%emt 0:03:47]} Nxc5 {[%emt 0:00:19]} 23. dxc5 {[%emt 0:00:21]} Rfe8 {[%emt 0:06:03]} 24. Bd6 {[%emt 0:01:46]} e5 {[%emt 0:04:40]} 25. Qb5 {[%emt 0:01:08]} Qxb5 {[%emt 0:02:41]} 26. axb5 {[%emt 0:00:08]} e4 {[%emt 0:00:09]} 27. Nd4 {[%emt 0:00:58]} Bf8 {[%emt 0:03:01]} 28. Bxf8 {[%emt 0:00:29]} Kxf8 {[%emt 0:00:08]} 29. c6 {[%emt 0:00:00]} Ke7 {[%emt 0:10:48]} 30. b6 {[%emt 0:01:26]} 1-0

[Event "EYCC 2017"]
[Site "Mamaia"]
[Date "2017.09.05"]
[Round "1"]
[White "Bulatova, Kamaliya"]
[Black "Shehzad, Alisha"]
[Result "1-0"]
[ECO "D00"]
[WhiteElo "2014"]
[BlackElo "1595"]
[Annotator "NA RC"]
[PlyCount "87"]
[EventDate "2017.??.??"]
[EventType "swiss"]
[EventCountry "ROU"]
[SourceTitle "playchess.com"]
[Source "ChessBase"]
[SourceQuality "1"]
[TimeControl "40/5400+30:1800+30"]

1. d4 {[%emt 0:00:00]} d5 {[%emt 0:00:06]} 2. Bf4 {[%emt 0:00:00]} Nf6 {[%emt 0:00:26]} 3. e3 {[%emt 0:00:00]} c5 {[%emt 0:02:20]} 4. c3 {[%emt 0:00:00]} e6 {[%emt 0:03:01]} 5. Nd2 {[%emt 0:00:43]} Nc6 {[%emt 0:01:28]} 6. Ngf3 {[%emt 0:00:50]} Bd6 {[%emt 0:02:08]} 7. Bg3 {[%emt 0:00:18]} O-O {[%emt 0:01:09]} 8. Bd3 {[%emt 0:00:19]} b6 {[%emt 0:01:54]} 9. Qe2 {[%emt 0:01:08]} a6 {[%emt 0:03:05]} 10. e4 {[%emt 0:03:57]} dxe4 {[%emt 0:17:08]} 11. Nxe4 {[%emt 0:00:15]} Be7 {[%emt 0:02:10]} 12. Nxf6+ {[%emt 0:01:09]} gxf6 {[%emt 0:11:07]} 13. Qe4 {[%emt 0:00:29]} f5 {[%emt 0:02:03]} 14. Qxc6 {[%emt 0:00:30]} Bd7 {[%emt 0:06:28]} 15. Qc7 {[%emt 0:03:32]} Qxc7 {[%emt 0:02:52]} 16. Bxc7 {[%emt 0:00:02]} b5 {[%emt 0:01:06]} 17. Bf4 {[%emt 0:02:27]} c4 {[%emt 0:03:18]} 18. Bc2 {[%emt 0:00:51]} Bc6 {[%emt 0:01:54]} 19. Ne5 {[%emt 0:04:12]} Bb7 {[%emt 0:04:45]} 20. Rg1 {[%emt 0:03:55]} h5 {[%emt 0:02:22]} 21. Bd1 {[%emt 0:00:47]} h4 {[%emt 0:01:14]} 22. g4 {[%emt 0:00:25]} hxg3 {[%emt 0:04:05]} 23. Rxg3+ {[%emt 0:00:13]} Kh7 {[%emt 0:01:39]} 24. Bh5 {[%emt 0:01:58]} Rg8 {[%emt 0:03:39]} 25. Bxf7 {[%emt 0:00:47]} Rxg3 {[%emt 0:05:17]} 26. hxg3 {[%emt 0:01:16]} Bd5 {[%emt 0:01:26]} 27. Ke2 {[%emt 0:02:57]} Kg7 {[%emt 0:01:50]} 28. g4 {[%emt 0:01:18]} fxg4 {[%emt 0:01:55]} 29. Rg1 {[%emt 0:00:07]} Bf6 {[%emt 0:05:59]} 30. Rxg4+ {[%emt 0:00:14]} Kf8 {[%emt 0:02:34]} 31. Bh5 {[%emt 0:04:16]} Ke7 {[%emt 0:01:32]} 32. Rg6 {[%emt 0:01:38]} Rh8 {[%emt 0:01:37]} 33. Bf3 {[%emt 0:00:44]} Bxf3+ {[%emt 0:00:53]} 34. Nxf3 {[%emt 0:00:06]} Rh1 {[%emt 0:00:52]} 35. Rg1 {[%emt 0:00:32]} Rh8 {[%emt 0:00:40]} 36. Ne5 {[%emt 0:01:02]} Rc8 {[%emt 0:01:15]} 37. Rh1 {[%emt 0:00:12]} Kf8 {[%emt 0:00:59]} 38. Nd7+ {[%emt 0:00:28]} Kf7 {[%emt 0:00:15]} 39. Nxf6 {[%emt 0:01:08]} Kxf6 {[%emt 0:00:08]} 40. Be5+ {[%emt 0:00:00]} Kg6 {[%emt 0:00:22]} 41. Rg1+ {[%emt 0:00:16]} Kf5 {[%emt 0:00:29]} 42. Rg7 {[%emt 0:00:19]} Rc6 {[%emt 0:00:30]} 43. Ke3 {[%emt 0:00:16]} Rb6 {[%emt 0:00:50]} 44. f4 {Ke4+ Kxe4} 1-0

[Event "EYCC 2017"]
[Site "Mamaia"]
[Date "2017.09.05"]
[Round "1"]
[White "Wikar, Martyna"]
[Black "Stan, Luciana-Gabriela"]
[Result "1-0"]
[ECO "B41"]
[WhiteElo "1950"]
[BlackElo "1510"]
[Annotator "NA RC"]
[PlyCount "73"]
[EventDate "2017.??.??"]
[EventType "swiss"]
[EventCountry "ROU"]
[SourceTitle "playchess.com"]
[Source "ChessBase"]
[SourceQuality "1"]
[TimeControl "40/5400+30:1800+30"]

1. e4 c5 2. Nf3 e6 3. d4 cxd4 4. Nxd4 a6 5. c4 Nf6 6. Nc3 Qc7 7. Be2 Bb4 8. f3 Bxc3+ 9. bxc3 O-O 10. Bg5 Qa5 11. Qd2 d6 12. Nb3 Qc7 13. Rd1 Ne8 14. c5 d5 15. exd5 exd5 16. Bf4 Qc6 17. Qxd5 Qa4 18. Nd4 Qa5 19. Qc4 Bd7 20. O-O Nf6 21. Bg5 Ba4 22. Nb3 Bxb3 23. axb3 Nbd7 24. b4 Qc7 25. Qf4 Qxf4 26. Bxf4 Rfe8 27. Kf2 Ne5 28. Rfe1 Nh5 29. Bxe5 Rxe5 30. Bc4 Rxe1 31. Rxe1 Kf8 32. Bd5 Rb8 33. g3 Nf6 34. c4 h6 35. f4 b5 36. c6 Rc8 37. Bf3 1-0

[Event "EYCC 2017"]
[Site "Mamaia"]
[Date "2017.09.05"]
[Round "1"]
[White "Can, Isil"]
[Black "Hina, Ariza"]
[Result "1-0"]
[ECO "C50"]
[WhiteElo "1945"]
[BlackElo "1525"]
[Annotator "NA RC"]
[PlyCount "73"]
[EventDate "2017.??.??"]
[EventType "swiss"]
[EventCountry "ROU"]
[SourceTitle "playchess.com"]
[Source "ChessBase"]
[SourceQuality "1"]
[TimeControl "40/5400+30:1800+30"]

1. e4 {[%emt 0:00:00]} e5 {[%emt 0:00:05]} 2. Nf3 {[%emt 0:00:00]} Nc6 {[%emt 0:00:09]} 3. Bc4 {[%emt 0:00:15]} Nf6 {[%emt 0:00:21]} 4. d3 {[%emt 0:00:12]} Bc5 {[%emt 0:00:09]} 5. Nbd2 {[%emt 0:01:35]} d6 {[%emt 0:00:41]} 6. c3 {[%emt 0:00:19]} O-O {[%emt 0:00:07]} 7. Bb3 {[%emt 0:00:09]} Bg4 {[%emt 0:03:16]} 8. h3 {[%emt 0:05:50]} Bh5 {[%emt 0:00:15]} 9. Nf1 {[%emt 0:00:10]} d5 {[%emt 0:07:43]} 10. Qe2 {[%emt 0:00:22]} dxe4 {[%emt 0:01:07]} 11. dxe4 {[%emt 0:00:09]} Bg6 {[%emt 0:00:19]} 12. Ng3 {[%emt 0:03:05]} Qd7 {[%emt 0:04:06]} 13. O-O {[%emt 0:06:58]} Rad8 {[%emt 0:02:30]} 14. Bc2 {[%emt 0:00:29]} Nh5 {[%emt 0:04:08]} 15. Nxh5 {[%emt 0:01:17]} Bxh5 {[%emt 0:00:09]} 16. g4 {[%emt 0:00:17]} Bg6 {[%emt 0:00:07]} 17. Nh4 {[%emt 0:06:37]} Qe7 {[%emt 0:11:08]} 18. Nf5 {[%emt 0:00:09]} Bxf5 {[%emt 0:01:12]} 19. exf5 {[%emt 0:00:29]} Rfe8 {[%emt 0:02:17]} 20. Be4 {[%emt 0:02:28]} Qd6 {[%emt 0:00:59]} 21. Bg5 {[%emt 0:04:14]} f6 {[%emt 0:00:50]} 22. Bh4 {[%emt 0:02:09]} Qd2 {[%emt 0:08:24]} 23. Qc4+ {[%emt 0:00:46]} Kh8 {[%emt 0:00:38]} 24. Qxc5 {[%emt 0:00:25]} Qxb2 {[%emt 0:07:10]} 25. Rab1 {[%emt 0:09:15]} Qd2 {[%emt 0:01:49]} 26. Rxb7 {[%emt 0:01:18]} Nb8 {[%emt 0:02:07]} 27. Qxc7 {[%emt 0:02:05]} Qh6 {[%emt 0:00:56]} 28. Bg3 {[%emt 0:03:57]} Rc8 {[%emt 0:03:36]} 29. Qf7 {[%emt 0:06:19]} Rf8 {[%emt 0:00:55]} 30. Qe7 {[%emt 0:01:35]} Rce8 {[%emt 0:00:39]} 31. Qb4 {[%emt 0:02:12]} Qxh3 {[%emt 0:09:42]} 32. Bg2 {[%emt 0:00:15]} Qh6 {[%emt 0:00:24]} 33. Rb1 {[%emt 0:00:39]} g6 {[%emt 0:01:49]} 34. fxg6 {[%emt 0:01:36]} Qxg6 {[%emt 0:01:42]} 35. Be4 {[%emt 0:00:29]} Qg5 {[%emt 0:03:30]} 36. Rxh7+ {[%emt 0:00:14]} Kg8 {[%emt 0:00:10]} 37. Qc4+ {[%emt 0:00:16]} 1-0

[Event "EYCC 2017"]
[Site "Mamaia"]
[Date "2017.09.05"]
[Round "1"]
[White "Milikow, Elie"]
[Black "Shapovalovi, Vasiko"]
[Result "1-0"]
[ECO "B88"]
[WhiteElo "1939"]
[BlackElo "1459"]
[Annotator "NA RC"]
[PlyCount "147"]
[EventDate "2017.??.??"]
[EventType "swiss"]
[EventCountry "ROU"]
[SourceTitle "playchess.com"]
[Source "ChessBase"]
[SourceQuality "1"]
[TimeControl "40/5400+30:1800+30"]

1. e4 {[%emt 0:00:00]} c5 {[%emt 0:00:06]} 2. Nf3 {[%emt 0:00:00]} Nc6 {[%emt 0:00:07]} 3. d4 {[%emt 0:00:00]} cxd4 {[%emt 0:00:12]} 4. Nxd4 {[%emt 0:00:21]} Nf6 {[%emt 0:00:25]} 5. Nc3 {[%emt 0:00:23]} d6 {[%emt 0:00:10]} 6. Bc4 {[%emt 0:03:28]} e6 {[%emt 0:01:13]} 7. Bb3 {[%emt 0:03:10]} Be7 {[%emt 0:00:47]} 8. O-O {[%emt 0:02:29]} O-O {[%emt 0:02:03]} 9. h3 {[%emt 0:03:05]} a6 {[%emt 0:01:58]} 10. Re1 {[%emt 0:05:06]} Qc7 {[%emt 0:02:22]} 11. Nxc6 {[%emt 0:04:51]} bxc6 {[%emt 0:01:38]} 12. Bf4 {[%emt 0:02:24]} e5 {[%emt 0:04:10]} 13. Bh2 {[%emt 0:02:09]} Be6 {[%emt 0:01:30]} 14. Qe2 {[%emt 0:01:23]} a5 {[%emt 0:02:48]} 15. Kh1 {[%emt 0:04:22]} Rad8 {[%emt 0:04:56]} 16. f4 {[%emt 0:05:27]} Bxb3 {[%emt 0:05:26]} 17. axb3 {[%emt 0:00:40]} exf4 {[%emt 0:04:43]} 18. Bxf4 {[%emt 0:00:28]} Nd7 {[%emt 0:03:24]} 19. Qf2 {[%emt 0:04:58]} Ne5 {[%emt 0:01:55]} 20. Ra2 {[%emt 0:03:02]} Ra8 {[%emt 0:07:47]} 21. Rea1 {[%emt 0:01:09]} Ra6 {[%emt 0:02:16]} 22. Qe2 {[%emt 0:05:06]} Rfa8 {[%emt 0:01:13]} 23. Nd1 {[%emt 0:01:36]} Bf6 {[%emt 0:02:16]} 24. Bd2 {[%emt 0:01:10]} R6a7 {[%emt 0:05:08]} 25. Qe1 {[%emt 0:04:24]} Bd8 {[%emt 0:00:17]} 26. Be3 {[%emt 0:02:52]} Ra6 {[%emt 0:00:34]} 27. Qe2 {[%emt 0:01:45]} h6 {[%emt 0:02:18]} 28. b4 {[%emt 0:02:04]} Qb7 {[%emt 0:04:46]} 29. Bd2 {[%emt 0:02:55]} a4 {[%emt 0:06:51]} 30. b3 a3 {[%emt 0:05:34]} 31. c3 {[%emt 0:03:10]} c5 {[%emt 0:05:10]} 32. b5 {[%emt 0:01:08]} R6a7 {[%emt 0:03:38]} 33. Bc1 {[%emt 0:00:56]} Bg5 {[%emt 0:04:29]} 34. Rxa3 {[%emt 0:06:31]} Rxa3 {[%emt 0:01:55]} 35. Bxa3 {[%emt 0:01:19]} Ra5 {[%emt 0:00:58]} 36. b4 {[%emt 0:03:51]} cxb4 {[%emt 0:03:33]} 37. cxb4 {[%emt 0:00:25]} Rxb5 {[%emt 0:01:26]} 38. Nc3 {[%emt 0:01:28]} Rxb4 {[%emt 0:02:31]} 39. Bxb4 {[%emt 0:00:33]} Qxb4 {[%emt 0:00:07]} 40. Nd5 {[%emt 0:00:00]} Qc4 {[%emt 0:01:04]} 41. Qxc4 {[%emt 0:02:12]} Nxc4 {[%emt 0:00:03]} 42. Ra4 {[%emt 0:02:23]} Ne3 {[%emt 0:01:38]} 43. h4 {[%emt 0:03:13]} Nxd5 {[%emt 0:00:58]} 44. hxg5 {[%emt 0:00:29]} Nc7 {[%emt 0:00:55]} 45. gxh6 {[%emt 0:01:02]} gxh6 {[%emt 0:00:20]} 46. Kh2 {[%emt 0:01:49]} Kg7 {[%emt 0:00:52]} 47. Kg3 {[%emt 0:00:25]} Kf6 {[%emt 0:01:03]} 48. Kf4 {[%emt 0:00:24]} Ne6+ {[%emt 0:02:14]} 49. Ke3 {[%emt 0:00:28]} Nc5 {[%emt 0:01:01]} 50. Rd4 {[%emt 0:00:44]} Nb7 {[%emt 0:03:45]} 51. Rd5 {[%emt 0:00:43]} Kg6 {[%emt 0:00:33]} 52. Rb5 {[%emt 0:00:10]} Nd8 {[%emt 0:02:42]} 53. Rb6 {[%emt 0:00:20]} f6 {[%emt 0:00:16]} 54. Rxd6 {[%emt 0:00:41]} Nf7 {[%emt 0:00:04]} 55. Rd5 {[%emt 0:01:10]} Ne5 {[%emt 0:00:30]} 56. Kf4 {[%emt 0:02:16]} Nf7 {[%emt 0:01:04]} 57. Rd7 {[%emt 0:01:48]} Ne5 {[%emt 0:01:01]} 58. Rd6 {[%emt 0:00:41]} Nf7 {[%emt 0:00:24]} 59. Re6 {[%emt 0:00:39]} Ng5 {[%emt 0:01:13]} 60. Re7 {[%emt 0:01:41]} Nf7 {[%emt 0:01:20]} 61. g4 {[%emt 0:02:25]} Ng5 {[%emt 0:00:47]} 62. e5 {[%emt 0:00:40]} fxe5+ {[%emt 0:01:01]} 63. Rxe5 {[%emt 0:00:43]} Nh3+ {[%emt 0:00:35]} 64. Kg3 {[%emt 0:00:22]} Ng5 {[%emt 0:00:12]} 65. Ra5 {[%emt 0:00:49]} Nf7 {[%emt 0:01:29]} 66. Kf4 {[%emt 0:01:00]} Kg7 {[%emt 0:00:59]} 67. Ra7 {[%emt 0:00:37]} Kg6 {[%emt 0:00:41]} 68. Ra6+ {[%emt 0:00:18]} Kg7 {[%emt 0:00:13]} 69. Kf5 {[%emt 0:00:14]} h5 {[%emt 0:08:53]} 70. g5 {[%emt 0:01:43]} h4 {[%emt 0:00:40]} 71. Ra7 {[%emt 0:00:13]} h3 {[%emt 0:00:25]} 72. g6 {[%emt 0:00:09]} h2 {[%emt 0:00:42]} 73. Rxf7+ {[%emt 0:00:09]} Kg8 {[%emt 0:00:11]} 74. Rh7 {[%emt 0:00:07]} 1-0

[Event "EYCC 2017"]
[Site "Mamaia"]
[Date "2017.09.05"]
[Round "1"]
[White "Mircheva, Nona"]
[Black "Rozman, Monika"]
[Result "0-1"]
[ECO "B98"]
[WhiteElo "1906"]
[BlackElo "2082"]
[Annotator "NA RC"]
[PlyCount "60"]
[EventDate "2017.??.??"]
[EventType "swiss"]
[EventCountry "ROU"]
[SourceTitle "playchess.com"]
[Source "ChessBase"]
[SourceQuality "1"]
[TimeControl "40/5400+30:1800+30"]

1. e4 {[%emt 0:00:00]} c5 {[%emt 0:00:04]} 2. Nf3 {[%emt 0:00:00]} d6 {[%emt 0:00:04]} 3. d4 {[%emt 0:00:04]} cxd4 {[%emt 0:00:06]} 4. Nxd4 {[%emt 0:00:08]} Nf6 {[%emt 0:00:05]} 5. Nc3 {[%emt 0:00:19]} a6 {[%emt 0:00:05]} 6. Bg5 {[%emt 0:01:05]} e6 {[%emt 0:05:25]} 7. f4 {[%emt 0:00:32]} Be7 {[%emt 0:01:08]} 8. Qf3 {[%emt 0:00:52]} Qc7 {[%emt 0:08:30]} 9. O-O-O {[%emt 0:03:55]} Nc6 {[%emt 0:01:09]} 10. Nb3 {[%emt 0:04:30]} O-O {[%emt 0:05:30]} 11. g4 {[%emt 0:04:33]} b5 {[%emt 0:05:20]} 12. h4 {[%emt 0:08:06]} Bb7 {[%emt 0:03:02]} 13. Bxf6 {[%emt 0:15:37]} Bxf6 {[%emt 0:01:44]} 14. g5 {[%emt 0:00:08]} Be7 {[%emt 0:00:56]} 15. h5 {[%emt 0:06:36]} b4 {[%emt 0:01:41]} 16. Ne2 {[%emt 0:03:43]} Rac8 {[%emt 0:03:05]} 17. Rd2 {[%emt 0:05:21]} d5 {[%emt 0:14:05]} 18. Ng3 {[%emt 0:05:52]} a5 {[%emt 0:08:56]} 19. Bb5 {[%emt 0:07:13]} a4 {[%emt 0:08:06]} 20. Bxa4 {[%emt 0:01:10]} Ra8 {[%emt 0:01:39]} 21. Bxc6 {[%emt 0:02:48]} Qxc6 {[%emt 0:01:31]} 22. Kb1 {[%emt 0:04:15]} dxe4 {[%emt 0:05:17]} 23. Qe3 {[%emt 0:02:08]} Rfc8 {[%emt 0:01:32]} 24. h6 {[%emt 0:10:45]} Qa4 {[%emt 0:02:19]} 25. Rd4 {[%emt 0:01:43]} Qxa2+ {[%emt 0:03:47]} 26. Kc1 {[%emt 0:00:04]} Ra3 {[%emt 0:02:16]} 27. Rd7 {[%emt 0:02:38]} Rxb3 {[%emt 0:03:32]} 28. Qd4 {[%emt 0:01:06]} Bf6 {[%emt 0:01:08]} 29. gxf6 {[%emt 0:01:08]} Rd3 {[%emt 0:00:15]} 30. Qxd3 {[%emt 0:03:14]} exd3 {[%emt 0:00:12]} 0-1